Cogmind - Beta 14 @@@ ROGUE MODE // 2024.11.25 @ 23:28:53 Player: Tenderz Result: Destroyed by G-34 Mercenary with Small Laser Performance ------------- Evolutions (0) 0 Regions Visited (1) 200 Robots Destroyed (26) 130 Value Destroyed (420) 420 Prototype IDs (0) 0 Alien Tech Used (0) 0 Bonus (0) 0 TOTAL SCORE: 750 Bonus ------- None Cogmind --------- Core Integrity 0/250 Matter 246/300 Energy 250/250 System Corruption 0% Temperature Cool (22) Movement Rolling (100) Location -10/Materials Parts ------- > --- POWER (1) -------- Ion Engine > --- PROPULSION (2) --- Compact Wheel Compact Wheel > --- UTILITY (2) ------ Small Storage Unit > --- WEAPON (2) ------- Light Assault Rifle Light Assault Rifle > --- INVENTORY (8) ---- Ion Engine Wheel Heat Sink Sensor Array Grenade Launcher Grenade Launcher Maul Maul Peak State ------------ > --- POWER ------------ Ion Engine > --- PROPULSION ------- Wheel Wheel > --- UTILITY ---------- Small Storage Unit Seismic Detector > --- WEAPON ----------- Maul Maul > --- INVENTORY -------- Ion Engine Aluminum Leg Wheel Compact Wheel Assault Rifle Assault Rifle Light Assault Rifle Grenade Launcher [Rating: 9] Favorites ----------- Power Ion Engine Engine Ion Engine Propulsion Compact Wheel Wheel Compact Wheel Utility Small Storage Unit Device Seismic Detector Storage Small Storage Unit Weapon Maul Ballistic Gun Assault Rifle Launcher Grenade Launcher Impact Weapon Maul Build | -11 -10 ------- Run | Yrd Mat Slots Evolved . | . . Power . | . . Propulsion . | . . Utility . | . . Weapon . | . . Parts Attached 27 | 8 19 Power 2 | 1 1 Engine 2 | 1 1 Core . | . . Reactor . | . . Propulsion 5 | 2 3 Treads . | . . Leg . | . . Wheel 5 | 2 3 Hover . | . . Flight . | . . Utility 3 | 3 . Device 1 | 1 . Storage 2 | 2 . Processor . | . . Hackware . | . . Protection . | . . Artifact . | . . Weapon 17 | 2 15 Energy Gun . | . . Energy Cannon . | . . Ballistic Gun 8 | 2 6 Ballistic Cannon . | . . Launcher 2 | . 2 Special Weapon . | . . Impact Weapon 7 | . 7 Slashing Weapon . | . . Piercing Weapon . | . . Special Melee Weapon . | . . Unidentified Prototypes . | . . Parts Lost 5 | . 5 Power 1 | . 1 Propulsion 3 | . 3 Utility 1 | . 1 Weapon . | . . Highest Loss Streak 2 | . 2 To Critical Strikes . | . . Average Slot Usage (%) 98 | . 98 Engine 14 | . 14 Wheel 27 | . 27 Device 13 | . 13 Storage 14 | . 14 Ballistic Gun 9 | . 9 Impact Weapon 17 | . 17 Peak Build Rating 9 | 7 9 Average Rating 8 | 5 8 On Entrance 3 | . 7 Naked Turns . | . . Heaviest Build 17 | 15 17 Greatest Support 32 | 20 32 Greatest Overweight (x) 1 | . 1 Average Overweight (x) . | . . Largest Inventory Capacity 8 | 8 8 Average Capacity 7 | 7 8 Most Carried 8 | 6 8 Average Carried 7 | 3 7 Final Capacity 8 | 8 8 Final Carried 8 | 6 8 Class Distribution -------------------- 100% | Mutant Dominant Class ---------------- Mutant | -10/Materials Resources | -11 -10 ----------- Run | Yrd Mat Matter Collected 592 | 294 298 Remotely . | . . Salvage Created 657 | 101 556 Parts 33 | 6 27 Haulers Intercepted . | . . Recyclers Shooed 1 | . 1 Parts Field Recycled . | . . Retrieved Matter . | . . Parts Self-Destructed . | . . Prevented . | . . Kills | -11 -10 ------- Run | Yrd Mat Combat Hostiles Destroyed 17 | . 17 Melee 6 | . 6 Guns 5 | . 5 AOE 4 | . 4 Classes Destroyed 7 | 2 5 Worker 3 | . 3 Builder 2 | . 2 Tunneler 1 | 1 . Recycler 2 | 1 1 Watcher 1 | . 1 Swarmer 9 | . 9 Grunt 8 | . 8 Best Kill Streak 4 | 2 4 Combat Bots Only 3 | . 3 Max Kills in Single Turn 3 | 1 3 Gunslinging . | . . Exploded 3 | . 3 Melee 1 | . 1 Uniques/NPCs Destroyed . | . . Combat | -11 -10 -------- Run | Yrd Mat Hostile Shots Fired 119 | . 119 Missed 26 | . 26 Damage Taken 881 | . 881 Core 259 | . 259 Absorbed by Shields . | . . Core Remaining (%) 100 | 100 . Volleys Fired 34 | 4 30 Largest 2 | 2 2 Hottest 40 | 40 40 Shots Fired 65 | 8 57 Gun 62 | 8 54 Cannon . | . . Launcher 3 | . 3 Special . | . . Kinetic 62 | 8 54 Thermal . | . . Explosive 3 | . 3 Electromagnetic . | . . Robot Hit Streak 9 | 4 9 Robot Miss Streak 3 | 1 3 Penetration Max . | . . Secondary Targets 1 | . 1 Max Gunslinging Chain 1 | . 1 Shots Hit Robots 64 | 5 59 Core Hits 21 | 3 18 Critical Kills . | . . Critical Parts Destroyed 6 | . 6 Critical Strikes 6 | . 6 Smash 6 | . 6 Melee Attacks 55 | . 55 Impact 55 | . 55 Slashing . | . . Piercing . | . . Sneak Attacks 5 | . 5 Combat Hostiles . | . . Follow-up Attacks 3 | . 3 Damage Inflicted 1723 | 64 1659 Guns 445 | 64 381 Cannons . | . . Explosions 248 | . 248 Melee 1030 | . 1030 Ramming . | . . Kinetic 445 | 64 381 Thermal . | . . Explosive 248 | . 248 Electromagnetic . | . . Impact 1030 | . 1030 Slashing . | . . Piercing . | . . Highest Corruption . | . . Average Corruption . | . . Corruption Purged . | . . Corruption Blocked . | . . Overload Shots . | . . Overflow Damage 435 | . 435 Projectiles . | . . Explosions . | . . Melee 435 | . 435 Knockbacks 7 | . 7 Impact 6 | . 6 Kinetic . | . . Secondary 1 | . 1 Self-Inflicted Damage 10 | . 10 Shots 1 | . 1 Rammed . | . . Targets Rammed . | . . Kicked . | . . Crushed . | . . Highest Temperature 24 | . 24 Average Temperature 11 | . 11 Received Heat Transfer 252 | . 252 Siege Activations . | . . Robots Corrupted 7 | . 7 Combat Hostiles 2 | . 2 Parts Fried 10 | . 10 Impact Corruptions 19 | . 19 Robots Melted . | . . Combat Hostiles . | . . Parts Melted . | . . Heat Transferred . | . . Parts Sabotaged . | . . Parts Stolen . | . . Parts Stripped . | . . Power Chain Reactions . | . . Alert | -11 -10 ------- Run | Yrd Mat Peak Influence 377 | 10 377 Initial 6 | . 6 Average 178 | 2 193 Maximum Alert Level 1 | . 1 Low Security (%) 51 | 100 47 Level 1 48 | . 52 Level 2 . | . . Level 3 . | . . Level 4 . | . . Level 5 . | . . High Security . | . . Max Security . | . . Squads Dispatched 3 | . 3 Investigation 3 | . 3 Extermination . | . . Reinforcement . | . . Assault . | . . Garrison . | . . Intercept . | . . Searches Triggered . | . . Construction Impeded . | . . Haulers Reinforced . | . . Active Scanning Responses . | . . Cargo Convoy Interrupts . | . . Stealth | -11 -10 --------- Run | Yrd Mat Distress Signals 1 | . 1 Communications Jammed . | . . Distress Signals . | . . Times Spotted 28 | . 28 Peak Tracking Total 4 | . 4 Tactical Retreats 5 | . 5 Traps | -11 -10 ------- Run | Yrd Mat Traps Triggered 2 | . 2 Indirectly . | . . Trap Hack Attempts . | . . Triggered . | . . Disarmed . | . . Reprogrammed . | . . Reused . | . . Traps Extracted . | . . Installed . | . . Triggered . | . . Machines | -11 -10 ---------- Run | Yrd Mat Machines Disabled 1 | . 1 Max in Single Turn 1 | . 1 Machines Repaired . | . . Machines Dismantled . | . . Machines Sabotaged . | . . Overloaded Fab Kills . | . . Hacking | -11 -10 --------- Run | Yrd Mat Machines Accessed 8 | . 8 Terminals 7 | . 7 Fabricators . | . . Repair Stations . | . . Recycling Units 1 | . 1 Scanalyzers . | . . Garrison Access . | . . Total Hacks 26 | . 26 Successful 9 | . 9 Failed 17 | . 17 Catastrophic 1 | . 1 Database Lockouts . | . . Manual 11 | . 11 Terminals 23 | . 23 Fabricators . | . . Repair Stations . | . . Recycling Units 3 | . 3 Scanalyzers . | . . Garrison Access . | . . Terminal Hacks 2 | . 2 Part Schematic 1 | . 1 Locate Traps 1 | . 1 Fabricator Hacks . | . . Repair Station Hacks . | . . Recycling Unit Hacks 1 | . 1 Report Inventory 1 | . 1 Scanalyzer . | . . Garrison Access Hacks . | . . Unauthorized Hacks 6 | . 6 Terminals 4 | . 4 Botnet 4 | . 4 Fabricators . | . . Repair Stations . | . . Recycling Units 2 | . 2 Monitor 1 | . 1 Recyclers 1 | . 1 Scanalyzers . | . . Garrison Access . | . . Data Cores Recovered . | . . Used . | . . Hacking Detections 7 | . 7 Full Trace Events 1 | . 1 Feedback Events . | . . Feedback Blocked . | . . Robot Schematics Acquired . | . . Robots Built . | . . Authchips . | . . Time . | . . Total Robot Build Rating . | . . Part Schematics Acquired 1 | . 1 Parts Built . | . . Authchips . | . . Time . | . . Total Part Build Rating . | . . Parts Repaired . | . . Time . | . . Parts Recycled . | . . Recycled Matter . | . . Retrieved Matter . | . . Retrieved Components . | . . Parts Scanalyzed . | . . Part Schematics Acquired . | . . Parts Damaged . | . . Bothacking | -11 -10 ------------ Run | Yrd Mat Used RIF Installer . | . . Robots Hacked . | . . Non-combat . | . . Combat . | . . Robot Hacks Applied . | . . Relay Couplers Released . | . . Fabnet Peak Effective % . | . . Robots Rewired . | . . Allies Hacked . | . . Hacks Repelled . | . . Allies | -11 -10 -------- Run | Yrd Mat Total Allies . | . . Largest Group . | . . Highest-Rated Group . | . . Highest-Rated Ally . | . . Total Orders . | . . Ally Attacks . | . . Total Damage . | . . Kills . | . . Allies Corrupted . | . . Allies Melted . | . . Intel | -11 -10 ------- Run | Yrd Mat Robot Analysis Total . | . . Derelict Logs Recovered . | . . Drone Launches . | . . Drone Recoveries . | . . Exploration | -11 -10 ------------- Run | Yrd Mat Turns Passed 1099 | 85 1014 Spaces Moved 776 | 64 712 Core 2 | 2 . Treads . | . . Legs . | . . Wheels 774 | 62 712 Hover . | . . Flight . | . . Fastest Speed 50 | 50 80 Average Speed 89 | 79 90 Slowest Speed 115 | 80 115 Overloaded Moves . | . . Propulsion Burnouts . | . . Robots Hopped . | . . Cave-ins Triggered . | . . Exploration Rate (%) 44 | 3 86 Regions Visited 1 Branch Regions . Pre-discovered Areas . | . . Known Exits Taken . | . . Unknown Exits Taken 1 | 1 . Scrap Searched . | . . Spaces Dug 10 | . 10 Terrain Destroyed 33 | . 33 Melee 10 | . 10 Projectile . | . . AOE 23 | . 23 Terrain Rammed . | . . Walls Destroyed . | . . Machines Disabled . | . . Actions | -11 -10 --------- Run | Yrd Mat Total 1007 | 87 920 Wait 94 | 4 90 Move 775 | 63 712 Hop . | . . Pick Up 18 | 6 12 Fast Attach 9 | 8 1 Attach 4 | . 4 Detach 1 | 1 . Swap 14 | . 14 Drop 8 | 1 7 Fire 34 | 4 30 Melee 50 | . 50 Ram . | . . Kick . | . . Crush . | . . Escape Stasis . | . . Rewire . | . . Trap . | . . Miscellaneous . | . . Route ------- -11/Scrapyard -10/Materials (discovered 4 exits: [*Mat x3] / [*Min]) History --------- Turn | Location | Event 11 | -11/Scrapyard | Discovered new exit (range 15) 86 | -11/Scrapyard | Entered Materials 314 | -10/Materials | Build established: Mutant 551 | -10/Materials | Discovered new exit (range 6) 602 | -10/Materials | Discovered new exit (range 12) 683 | -10/Materials | Core integrity fell below 50% 826 | -10/Materials | Discovered new exit (range 16) 956 | -10/Materials | Discovered new exit (range 11) 1093 | -10/Materials | Core integrity fell below 20% 1100 | -10/Materials | Destroyed by G-34 Mercenary with Small Laser Last Messages --------------- 01034_ S-10 Pest system corrupted by crushing effect. 01034_ S-10 Pest knocked back. 01034_ >> MONITOR: Recycling Unit M002 accepting Flight Unit (5%). 01035_ Seismic Detector destroyed. 01037_ >> MONITOR: Recycling Unit M002 accepting Corrupted Aluminum Leg (92%). 01040_ >> MONITOR: Recycling Unit M002 accepting Corrupted Sml. Laser (75%). 01058_ Maul follow-up attack on S-10 Pest. 01061_ U-05 Engineer builds a Wall. 01061_ S-10 Pest destroyed. 01078_ U-05 Engineer builds a Door. 01079_ Dropped Assault Rifle. 01080_ Acquired Lgt. Assault Rifle. 01084_ R-06 Scavenger collects Flight Unit. 01088_ K-01 Serf cleans the Recycling Unit. 01088_ R-06 Scavenger collects Assault Rifle. 01091_ R-06 Scavenger collects Lgt. Ion Engine. 01096_ K-01 Serf cleans the Recycling Unit. Map ----- +----------------------------------------------------+ | ## ![[||#???######??????????# ^^ #??????????? | | ## ] #???# ############ """#??????????? | | ## ##???# ""# + """#??????????? | | ##### ###### T"# # """#??????##### | | ##### ^ + ""# # #?????##"""# | | ^ # + + #????##"!!!" | | ^ T # ########## ###########?#"" " | | ^ ## # #????# # #?# | | ####### ## # #????# + #?# < | | ??????#^ """ ## # #????# # #?# | | ??????# """ ####### ###### # """ #?# | | ??????# """ * = # "" """ #??# | | ??????# * + "T """ #???# # | | ??????# # "" #???# # | | ??????# ########### ######## #???# + | | ??????# #?????????# # ###"########???# # | | ??????# #?????????# # """ # """"" #????# # | | ??????+ ? ??????????# + "T" # """"" #????# # | | ??????# ????????????# # # """"" ###### # | | ????????????????????# + # # # | | ????????????????????# # # + # | | ????????????????????########### # # | | ??????????????????????????#####% # ###### | | ??????????????????????????# =+%= ! # # | | ?????????????????########## ########### + """ | | ?????????????????# g @ #?????????# # """ | | ?????????????????# ""g## #?????????# # """ | | ?????????????????# Y" ## #?????????# # | | ?????????????????# ""?#r ########## # ! | | ?????????????????# k ?# ###### | | ?????????????????# a??+ #????? | | ############## + """ ? # #????? | | #?"""? # ##+########+######? | | #??""? ?####### # % #? | | #???? ?????# # """!""" ## | | ##########+?????????? ??????## # """%""" # | | ??????????????????############# # """%""" # | | ??????????????????# + # """ """ # | | ??????????????????# ##### ## "" """ # | | ??????????????????# ##??# ## # | | ??????????????????# ##??##########+#######= | | ??????????????????# ##??????????# # | | ??????????????????# " ##??????????# # | | ???????##########?# """ #???????????# + | | ######## #?# """ ##????????#####+## # | | / """ #?# [ ##????????# # # | | ######## """ #######+#####????????# # ## | | ???????# """ # % % #??##???????#""" # # | | ???????# =+%% ###"#???????#""" # # | | ???????# # T ##???????#""" # # | +----------------------------------------------------+ Best States ------------- Heat Dissipation 25 Energy Generation 10 Energy Capacity 250 Matter Stores 300 Matter Capacity 300 Sight Range 16 Terrain Scan Density 10 Evasion (%) 44 Item Schematics ----------------- Hcp. Storage Unit | -10/Materials | Hacked Robot Schematics ------------------ None Fabricated ------------ Nothing Alien Tech Used ----------------- None Achievements -------------- None Challenges ------------ None Game ------ Seed SmallActiveMultitool Manual? 0 Play Time 00:17:35 Cumulative 51.9 hours Start 2024.11.24 @ 16:28:50 End 2024.11.25 @ 23:28:53 Sessions 5 Manual Loads 0 Difficulty Rogue Special Mode None Game No. 38 Rogue 38 Adventurer 0 Explorer 0 Win Type - Total 0 Types 0/0/0/0/0/0/0/0/0 Lore% 18 Gallery% 42 Achievement% 35 Wizard Run 0 Options --------- Layout 2 ASCII 0 Keyboard 0 Movement Numpad Keybinds 0 Fullscreen 2 Font 28/SmallcapsLarge Map View 59x48 Zoom Use 0% Tactical HUD 1 Map Filters NONE Filters NONE Steam 1 RUN: 7b4455a2-750f-458c-9786-f576af8ba2ac